[Event "EYCC 2017"]
[Site "Mamaia"]
[Date "2017.09.13"]
[Round "8"]
[White "Nahornyi, Ihor"]
[Black "Gherghinoiu, Lucas"]
[Result "1-0"]
[ECO "B42"]
[WhiteElo "1690"]
[BlackElo "1805"]
[Annotator "NA RC"]
[PlyCount "71"]
[EventDate "2017.??.??"]
[EventType "swiss"]
[EventCountry "ROU"]
[SourceTitle "playchess.com"]
[Source "ChessBase"]
[SourceQuality "1"]
[TimeControl "40/5400+30:1800+30"]

1. e4 {[%emt 0:00:00]} c5 {[%emt 0:00:12]} 2. Nf3 {[%emt 0:00:00]} e6 {[%emt 0:00:08]} 3. d4 {[%emt 0:00:00]} cxd4 {[%emt 0:00:08]} 4. Nxd4 {[%emt 0:00:02]} a6 {[%emt 0:00:27]} 5. Bd3 {[%emt 0:00:12]} g6 {[%emt 0:00:29]} 6. c4 {[%emt 0:00:23]} Bg7 {[%emt 0:00:11]} 7. Nb3 {[%emt 0:00:17]} d6 {[%emt 0:06:38]} 8. Nc3 {[%emt 0:04:16]} Nf6 {[%emt 0:03:55]} 9. O-O {[%emt 0:07:37]} O-O {[%emt 0:07:22]} 10. Be2 {[%emt 0:03:50]} Qc7 {[%emt 0:18:25]} 11. Bf4 {[%emt 0:05:01]} e5 {[%emt 0:08:10]} 12. Be3 {[%emt 0:07:33]} Be6 {[%emt 0:10:35]} 13. Rc1 {[%emt 0:03:17]} b6 {[%emt 0:14:52]} 14. Qd2 {[%emt 0:12:26]} Rd8 {[%emt 0:07:53]} 15. Rfd1 {[%emt 0:02:47]} Rd7 {[%emt 0:09:10]} 16. f3 {[%emt 0:04:35]} Ra7 {[%emt 0:02:28]} 17. Bf1 {[%emt 0:07:35]} Rb7 {[%emt 0:03:11]} 18. Qf2 {[%emt 0:01:30]} Qd8 {[%emt 0:02:14]} 19. Nd5 {[%emt 0:07:09]} Bxd5 {[%emt 0:01:49]} 20. cxd5 {[%emt 0:00:16]} Re7 {[%emt 0:00:22]} 21. Rd2 {[%emt 0:05:26]} Nfd7 22. Rdc2 {[%emt 0:01:32]} Nc5 {[%emt 0:01:17]} 23. Nd2 {[%emt 0:00:25]} a5 {[%emt 0:01:03]} 24. b3 {[%emt 0:03:31]} Rec7 {[%emt 0:00:41]} 25. a3 {[%emt 0:00:51]} Qc8 26. b4 {[%emt 0:04:22]} Na4 {[%emt 0:00:49]} 27. Rxc7 {[%emt 0:03:15]} Rxc7 {[%emt 0:00:38]} 28. Rxc7 {[%emt 0:00:10]} Qxc7 {[%emt 0:00:00]} 29. Nc4 {[%emt 0:01:46]} axb4 {[%emt 0:00:12]} 30. axb4 {[%emt 0:01:26]} b5 {[%emt 0:00:07]} 31. Na5 {[%emt 0:03:34]} Qd7 {[%emt 0:01:54]} 32. Qe2 {[%emt 0:01:00]} Nc3 {[%emt 0:00:23]} 33. Qd3 {[%emt 0:00:15]} Qc7 {[%emt 0:00:11]} 34. Nc6 {[%emt 0:01:30]} Nxd5 {[%emt 0:00:58]} 35. exd5 {[%emt 0:00:25]} Nxc6 {[%emt 0:00:13]} 36. Qc2 {[%emt 0:00:25]} 1-0

[Event "EYCC 2017"]
[Site "Mamaia"]
[Date "2017.09.13"]
[Round "8"]
[White "Kolesov, Gordey"]
[Black "Georgiev, Konstantin"]
[Result "0-1"]
[ECO "B33"]
[WhiteElo "1672"]
[BlackElo "1911"]
[Annotator "NA RC"]
[PlyCount "208"]
[EventDate "2017.??.??"]
[EventType "swiss"]
[EventCountry "ROU"]
[SourceTitle "playchess.com"]
[Source "ChessBase"]
[SourceQuality "1"]
[TimeControl "40/5400+30:1800+30"]

1. e4 {[%emt 0:00:00]} c5 {[%emt 0:00:22]} 2. Nf3 {[%emt 0:00:00]} Nc6 {[%emt 0:00:07]} 3. d4 {[%emt 0:00:00]} cxd4 {[%emt 0:00:09]} 4. Nxd4 {[%emt 0:00:02]} Nf6 {[%emt 0:01:57]} 5. Nc3 {[%emt 0:00:12]} e6 {[%emt 0:02:46]} 6. Ndb5 {[%emt 0:00:12]} Bb4 {[%emt 0:00:26]} 7. a3 {[%emt 0:00:10]} Bxc3+ {[%emt 0:00:09]} 8. Nxc3 {[%emt 0:00:12]} d5 {[%emt 0:00:37]} 9. exd5 {[%emt 0:00:14]} exd5 {[%emt 0:00:05]} 10. Bd3 {[%emt 0:00:08]} O-O {[%emt 0:01:29]} 11. O-O {[%emt 0:00:07]} d4 {[%emt 0:01:46]} 12. Ne2 {[%emt 0:00:14]} h6 {[%emt 0:02:05]} 13. Bf4 {[%emt 0:02:06]} Re8 {[%emt 0:01:08]} 14. Re1 {[%emt 0:07:15]} Nd5 {[%emt 0:11:40]} 15. Qd2 {[%emt 0:14:08]} Be6 {[%emt 0:10:05]} 16. Rad1 {[%emt 0:09:26]} Qf6 {[%emt 0:14:42]} 17. Bg3 {[%emt 0:05:24]} Nb6 {[%emt 0:18:34]} 18. Qf4 {[%emt 0:02:06]} Qxf4 {[%emt 0:02:35]} 19. Bxf4 {[%emt 0:04:49]} Nc4 {[%emt 0:01:10]} 20. Bc1 {[%emt 0:01:28]} N4e5 {[%emt 0:11:27]} 21. Bb5 {[%emt 0:04:27]} Bc4 {[%emt 0:01:57]} 22. Bxc4 {[%emt 0:03:49]} Nxc4 {[%emt 0:00:07]} 23. b3 {[%emt 0:02:57]} N4e5 {[%emt 0:01:16]} 24. Kf1 {[%emt 0:02:44]} Rad8 {[%emt 0:00:33]} 25. Nf4 {[%emt 0:02:12]} Kh7 {[%emt 0:02:07]} 26. Nd3 {[%emt 0:02:37]} f6 {[%emt 0:01:45]} 27. h3 g5 {[%emt 0:01:54]} 28. Re2 {[%emt 0:12:05]} Kg6 {[%emt 0:00:58]} 29. Bb2 {[%emt 0:07:55]} Kf7 {[%emt 0:01:25]} 30. Red2 {[%emt 0:02:14]} Re7 {[%emt 0:01:11]} 31. Ba1 {[%emt 0:06:11]} b6 {[%emt 0:00:24]} 32. Ne1 {[%emt 0:01:46]} Red7 {[%emt 0:00:10]} 33. g3 {[%emt 0:00:13]} h5 {[%emt 0:01:45]} 34. Kg2 {[%emt 0:01:38]} g4 {[%emt 0:00:13]} 35. hxg4 {[%emt 0:00:53]} hxg4 {[%emt 0:00:01]} 36. f4 {[%emt 0:00:09]} gxf3+ {[%emt 0:00:08]} 37. Nxf3 {[%emt 0:00:10]} Nxf3 {[%emt 0:04:29]} 38. Kxf3 {[%emt 0:00:13]} Ke6 {[%emt 0:00:22]} 39. Ke4 {[%emt 0:01:10]} f5+ {[%emt 0:00:17]} 40. Kf4 {[%emt 0:00:00]} Rd5 {[%emt 0:00:35]} 41. Rh1 {[%emt 0:05:46]} Kd6 {[%emt 0:02:34]} 42. Rh5 {[%emt 0:01:33]} Rf8 {[%emt 0:00:26]} 43. c4 {[%emt 0:07:27]} Re5 {[%emt 0:02:54]} 44. Rh6+ {[%emt 0:00:12]} Kd7 {[%emt 0:00:36]} 45. b4 {[%emt 0:12:38]} Re4+ {[%emt 0:05:01]} 46. Kf3 {[%emt 0:00:10]} Ne5+ {[%emt 0:00:14]} 47. Kg2 {[%emt 0:00:19]} Nxc4 {[%emt 0:01:54]} 48. Rxd4+ {[%emt 0:03:06]} Rxd4 {[%emt 0:00:17]} 49. Bxd4 {[%emt 0:00:04]} Nxa3 {[%emt 0:00:41]} 50. Rh7+ {[%emt 0:02:28]} Kc6 {[%emt 0:00:14]} 51. Rxa7 {[%emt 0:02:29]} Nb5 {[%emt 0:00:16]} 52. Bg7 {[%emt 0:00:08]} Rd8 {[%emt 0:03:01]} 53. Rf7 {[%emt 0:00:43]} Nd6 {[%emt 0:00:09]} 54. Rf8 {[%emt 0:01:37]} Rd7 {[%emt 0:01:18]} 55. Be5 {[%emt 0:01:32]} Nc4 {[%emt 0:00:15]} 56. Bf4 {[%emt 0:01:30]} Rd5 {[%emt 0:00:37]} 57. Rb8 {[%emt 0:01:11]} Kb5 {[%emt 0:00:40]} 58. Bc7 {[%emt 0:00:58]} Rd7 {[%emt 0:01:52]} 59. Bd8 {[%emt 0:00:27]} Rd3 {[%emt 0:02:02]} 60. Be7 {[%emt 0:00:32]} Rd7 {[%emt 0:01:26]} 61. Re8 {[%emt 0:00:25]} Ne5 {[%emt 0:04:03]} 62. Bf8 {[%emt 0:01:07]} Rd2+ {[%emt 0:02:02]} 63. Kf1 {[%emt 0:00:40]} Rd5 {[%emt 0:00:41]} 64. Ke2 {[%emt 0:01:15]} Nc6 {[%emt 0:00:31]} 65. Ke3 {[%emt 0:00:36]} Nxb4 {[%emt 0:01:13]} 66. Re6 {[%emt 0:00:55]} Nc6 {[%emt 0:03:01]} 67. Kf4 {[%emt 0:00:26]} Rd1 {[%emt 0:00:29]} 68. Bg7 {[%emt 0:00:36]} Rf1+ {[%emt 0:01:12]} 69. Kg5 {[%emt 0:00:23]} Rf3 {[%emt 0:01:56]} 70. g4 {[%emt 0:00:40]} fxg4 {[%emt 0:02:42]} 71. Kxg4 {[%emt 0:00:02]} Rf1 {[%emt 0:00:15]} 72. Bb2 {[%emt 0:00:29]} Rf2 {[%emt 0:00:34]} 73. Bc3 {[%emt 0:00:11]} Kc5 {[%emt 0:00:23]} 74. Kg3 {[%emt 0:00:44]} Rc2 {[%emt 0:00:12]} 75. Bf6 {[%emt 0:00:16]} b5 {[%emt 0:00:10]} 76. Kf4 {[%emt 0:00:29]} b4 {[%emt 0:00:24]} 77. Re8 {[%emt 0:00:42]} b3 {[%emt 0:00:52]} 78. Kg5 {[%emt 0:00:44]} Rg2+ {[%emt 0:04:26]} 79. Kh6 {[%emt 0:00:34]} Rd2 {[%emt 0:01:20]} 80. Rc8 {[%emt 0:01:16]} Rd6 {[%emt 0:00:19]} 81. Kg5 {[%emt 0:00:14]} Rxf6 {[%emt 0:00:13]} 82. Re8 {[%emt 0:00:09]} Rf2 {[%emt 0:00:10]} 83. Re1 {[%emt 0:00:04]} Nd4 {[%emt 0:00:07]} 84. Rb1 {[%emt 0:00:04]} Kc4 {[%emt 0:00:04]} 85. Kh4 {[%emt 0:00:04]} b2 {[%emt 0:00:05]} 86. Kg3 {[%emt 0:00:03]} Rc2 {[%emt 0:00:03]} 87. Kf4 {[%emt 0:00:03]} Kb3 {[%emt 0:00:05]} 88. Ke3 {[%emt 0:00:04]} Ka2 {[%emt 0:00:04]} 89. Rh1 {[%emt 0:00:05]} b1=Q {[%emt 0:00:06]} 90. Rxb1 {[%emt 0:00:04]} Kxb1 {[%emt 0:00:04]} 91. Kxd4 {[%emt 0:00:06]} Kb2 {[%emt 0:00:03]} 92. Kd5 {[%emt 0:00:07]} Kb3 {[%emt 0:00:04]} 93. Ke5 {[%emt 0:00:06]} Rd2 {[%emt 0:00:04]} 94. Ke6 {[%emt 0:00:04]} Kc4 {[%emt 0:00:09]} 95. Ke5 {[%emt 0:00:04]} Re2+ {[%emt 0:00:03]} 96. Kd6 {[%emt 0:00:05]} Re4 {[%emt 0:00:04]} 97. Kc7 {[%emt 0:00:04]} Re6 {[%emt 0:00:03]} 98. Kd7 {[%emt 0:00:06]} Kd5 {[%emt 0:00:03]} 99. Kc7 {[%emt 0:00:05]} Rd6 {[%emt 0:00:03]} 100. Kb7 {[%emt 0:00:09]} Rc6 {[%emt 0:00:05]} 101. Ka7 {[%emt 0:00:05]} Kc5 {[%emt 0:00:04]} 102. Kb7 {[%emt 0:00:05]} Kb5 {[%emt 0:00:03]} 103. Ka7 {[%emt 0:00:05]} Rc7+ {[%emt 0:00:06]} 104. Kb8 {[%emt 0:00:08]} Kb6 {[%emt 0:00:04]} 0-1

[Event "EYCC 2017"]
[Site "Mamaia"]
[Date "2017.09.13"]
[Round "8"]
[White "Verma, Shlok"]
[Black "Dimitrov, Dimitar Hr"]
[Result "1-0"]
[ECO "A58"]
[WhiteElo "1658"]
[BlackElo "1170"]
[Annotator "NA RC"]
[PlyCount "93"]
[EventDate "2017.??.??"]
[EventType "swiss"]
[EventCountry "ROU"]
[SourceTitle "playchess.com"]
[Source "ChessBase"]
[SourceQuality "1"]
[TimeControl "40/5400+30:1800+30"]

1. d4 {[%emt 0:00:44]} Nf6 {[%emt 0:02:45]} 2. c4 {[%emt 0:00:15]} c5 {[%emt 0:00:06]} 3. d5 {[%emt 0:00:17]} b5 {[%emt 0:00:03]} 4. cxb5 {[%emt 0:00:53]} a6 {[%emt 0:00:13]} 5. bxa6 {[%emt 0:00:25]} Bxa6 {[%emt 0:00:10]} 6. Nc3 {[%emt 0:00:59]} g6 {[%emt 0:00:12]} 7. e4 {[%emt 0:01:02]} Bxf1 {[%emt 0:00:13]} 8. Kxf1 {[%emt 0:00:27]} d6 {[%emt 0:00:08]} 9. Nf3 {[%emt 0:00:27]} Nbd7 {[%emt 0:00:56]} 10. g3 {[%emt 0:01:43]} Bg7 {[%emt 0:00:28]} 11. Kg2 {[%emt 0:00:54]} O-O {[%emt 0:00:17]} 12. a4 {[%emt 0:01:57]} Re8 {[%emt 0:01:00]} 13. Qe2 {[%emt 0:02:05]} Qa5 {[%emt 0:01:39]} 14. Nb5 {[%emt 0:01:51]} Reb8 {[%emt 0:00:52]} 15. Bd2 {[%emt 0:01:38]} Qb6 {[%emt 0:01:15]} 16. Bg5 {[%emt 0:00:52]} Kh8 {[%emt 0:01:22]} 17. Ra3 {[%emt 0:06:17]} Qa6 {[%emt 0:01:07]} 18. Re1 {[%emt 0:03:48]} Ng8 {[%emt 0:02:30]} 19. Rb1 {[%emt 0:04:26]} Nb6 {[%emt 0:01:22]} 20. Qc2 {[%emt 0:01:57]} Rb7 {[%emt 0:00:48]} 21. Nd2 {[%emt 0:02:32]} Nxa4 {[%emt 0:01:35]} 22. Nxd6 {[%emt 0:04:14]} exd6 {[%emt 0:00:24]} 23. b3 {[%emt 0:00:15]} Rba7 {[%emt 0:01:58]} 24. Nc4 {[%emt 0:06:11]} Qc8 {[%emt 0:01:30]} 25. Rxa4 {[%emt 0:03:23]} Rxa4 {[%emt 0:00:32]} 26. bxa4 {[%emt 0:00:21]} Qa6 {[%emt 0:00:55]} 27. Rb6 {[%emt 0:00:58]} Qxa4 {[%emt 0:00:18]} 28. Qxa4 {[%emt 0:00:10]} Rxa4 {[%emt 0:00:07]} 29. Nxd6 {[%emt 0:00:07]} h6 {[%emt 0:00:45]} 30. Be3 {[%emt 0:00:56]} Kh7 {[%emt 0:01:04]} 31. Bxc5 {[%emt 0:00:50]} Bf8 {[%emt 0:00:48]} 32. Nb7 {[%emt 0:00:43]} Bg7 {[%emt 0:00:29]} 33. d6 {[%emt 0:00:27]} Nf6 {[%emt 0:00:31]} 34. Rb4 {[%emt 0:01:25]} Rxb4 {[%emt 0:00:32]} 35. Bxb4 {[%emt 0:00:30]} Nxe4 {[%emt 0:00:40]} 36. d7 {[%emt 0:00:02]} Bf6 {[%emt 0:00:38]} 37. d8=Q {[%emt 0:00:59]} Bxd8 {[%emt 0:00:20]} 38. Nxd8 {[%emt 0:00:10]} f6 {[%emt 0:00:44]} 39. f3 {[%emt 0:00:22]} Ng5 {[%emt 0:02:13]} 40. h4 {[%emt 0:00:00]} Nxf3 {[%emt 0:00:38]} 41. Kxf3 {[%emt 0:02:05]} g5 {[%emt 0:00:40]} 42. h5 {[%emt 0:00:33]} f5 {[%emt 0:00:25]} 43. g4 {[%emt 0:00:25]} fxg4+ 44. Kxg4 Kg7 {[%emt 0:01:41]} 45. Bc3+ {[%emt 0:00:43]} Kg8 {[%emt 0:03:42]} 46. Ne6 {[%emt 0:01:06]} Kh7 {[%emt 0:00:18]} 47. Nxg5+ {[%emt 0:00:07]} 1-0

[Event "EYCC 2017"]
[Site "Mamaia"]
[Date "2017.09.13"]
[Round "8"]
[White "Tryggestad, Linnea Garberg"]
[Black "Reuter, Elisa"]
[Result "1/2-1/2"]
[ECO "A45"]
[WhiteElo "1597"]
[BlackElo "1910"]
[Annotator "NA RC"]
[PlyCount "127"]
[EventDate "2017.??.??"]
[EventType "swiss"]
[EventCountry "ROU"]
[SourceTitle "playchess.com"]
[Source "ChessBase"]
[SourceQuality "1"]
[TimeControl "40/5400+30:1800+30"]

1. d4 {[%emt 0:00:00]} Nf6 {[%emt 0:00:04]} 2. Bg5 {[%emt 0:00:00]} Ne4 {[%emt 0:00:03]} 3. Bf4 {[%emt 0:00:00]} d5 {[%emt 0:00:03]} 4. e3 {[%emt 0:00:36]} c5 {[%emt 0:00:23]} 5. c3 {[%emt 0:01:23]} Nc6 {[%emt 0:00:05] A45: Trompowsky Attack} 6. Bd3 {[%emt 0:02:00]} (6. Nd2 Nf6 7. Bd3 Bg4 8. Ngf3 e6 9. Qa4 Nd7 10. O-O Be7 11. Ne5 Ndxe5 12. Bxe5 O-O 13. Bg3 {½-½ (32) Bartel,M (2641)-Radjabov,T (2724) Dubai 2014}) 6... g5 {[%emt 0:00:47]} 7. Bg3 {[%emt 0:04:00]} Nxg3 {[%emt 0:01:07]} 8. hxg3 {[%emt 0:05:35]} e5 {[%emt 0:00:58]} 9. Bb5 $146 {[%emt 0:23:41]} ({Find the theoretical novelty and annotate with similar games:} 9. dxe5 Qb6 10. Ne2 Qxb2 11. Nd2 Nxe5 12. Bc2 Qb6 13. Nf3 Nxf3+ 14. gxf3 {0-1 (23) Anastasian,A (2260)-Holmsten,A (2364) Ubeda 2000}) 9... e4 {[%emt 0:09:59]} 10. Nd2 {[%emt 0:05:42]} Be6 {[%emt 0:01:11]} 11. Qc2 {[%emt 0:05:58]} Qc7 {[%emt 0:01:58]} 12. Ne2 {[%emt 0:02:06]} a6 {[%emt 0:01:29]} 13. Bxc6+ {[%emt 0:00:25]} bxc6 {[%emt 0:03:58]} 14. b3 {[%emt 0:15:58]} Bd6 {[%emt 0:03:07]} 15. c4 {[%emt 0:10:30]} cxd4 {[%emt 0:04:13]} 16. exd4 {[%emt 0:01:45]} Qb7 {[%emt 0:07:50]} 17. c5 {[%emt 0:01:12]} Be7 {[%emt 0:01:29]} 18. Nc3 {[%emt 0:01:29]} Bd8 {[%emt 0:01:46]} 19. Qb2 {[%emt 0:01:07]} Qb4 {[%emt 0:02:43]} 20. Ncxe4 {[%emt 0:02:07]} dxe4 {[%emt 0:03:35]} 21. d5 {[%emt 0:00:13]} f6 {[%emt 0:03:45]} 22. dxe6 {[%emt 0:00:34]} Qxc5 {[%emt 0:02:14]} 23. Nxe4 {[%emt 0:03:42]} Qb4+ {[%emt 0:02:15]} 24. Nd2 {[%emt 0:00:49]} Ba5 {[%emt 0:05:48]} 25. O-O-O {[%emt 0:00:20]} Qc3+ {[%emt 0:12:59]} 26. Qxc3 {[%emt 0:00:12]} Bxc3 {[%emt 0:00:04]} 27. Ne4 {[%emt 0:00:13]} Be5 {[%emt 0:00:37]} 28. Rd7 {[%emt 0:00:31]} h6 {[%emt 0:05:35]} 29. Rf7 {[%emt 0:01:30]} Rf8 {[%emt 0:04:11]} 30. Rxf8+ {[%emt 0:00:09]} Kxf8 {[%emt 0:00:17]} 31. Rxh6 {[%emt 0:00:12]} Ke7 {[%emt 0:00:12]} 32. Nc5 {[%emt 0:02:08]} Kd6 {[%emt 0:01:23]} 33. Nd7 {[%emt 0:01:57]} Kxe6 {[%emt 0:00:37]} 34. Nxe5 {[%emt 0:00:21]} Kxe5 {[%emt 0:00:09]} 35. f4+ {[%emt 0:00:23]} Kf5 {[%emt 0:03:21]} 36. fxg5 {[%emt 0:02:58]} Kxg5 {[%emt 0:01:18]} 37. Rh7 {[%emt 0:00:50]} a5 {[%emt 0:00:34]} 38. Rc7 {[%emt 0:00:22]} Ra6 {[%emt 0:00:12]} 39. Rg7+ {[%emt 0:00:07]} Kf5 {[%emt 0:00:41]} 40. Kc2 {[%emt 0:00:00]} Rb6 {[%emt 0:01:13]} 41. Rh7 {[%emt 0:01:28]} Kg6 $16 {[%emt 0:04:43]} 42. Rh4 {[%emt 0:02:13]} Rb5 {[%emt 0:04:56]} 43. Rc4 {[%emt 0:01:11]} Rg5 {[%emt 0:01:00]} 44. Rc3 {[%emt 0:00:32]} c5 {[%emt 0:02:10]} 45. Rf3 {[%emt 0:02:52]} Rd5 {[%emt 0:00:56]} 46. Rd3 {[%emt 0:01:20]} Rg5 {[%emt 0:00:49]} 47. Kd2 {[%emt 0:03:15]} Rg4 {[%emt 0:00:57]} 48. Rc3 {[%emt 0:03:05]} a4 {[%emt 0:01:33]} 49. Ke2 {[%emt 0:02:47]} axb3 {[%emt 0:00:37]} 50. axb3 {[%emt 0:00:30]} Rg5 {[%emt 0:00:13]} 51. Kf3 {[%emt 0:01:34]} Rf5+ {[%emt 0:00:20]} 52. Ke2 {[%emt 0:00:35]} Rg5 {[%emt 0:00:09]} 53. Kf2 {[%emt 0:01:02]} Kf7 {[%emt 0:04:37]} 54. Rc4 {[%emt 0:01:59]} Rd5 {[%emt 0:02:11]} 55. b4 {[%emt 0:02:02]} cxb4 {[%emt 0:00:07]} 56. Rxb4 {[%emt 0:00:06]} Rd2+ {[%emt 0:01:42]} 57. Kf3 {[%emt 0:00:40]} Rd3+ {[%emt 0:00:32]} 58. Kg4 {[%emt 0:00:53]} Rd5 {[%emt 0:00:20]} 59. Kh4 {[%emt 0:00:29]} Kg6 {[%emt 0:01:28]} 60. g4 {[%emt 0:02:12]} Rg5 {[%emt 0:02:24]} 61. Rb8 {[%emt 0:01:03]} Kg7 {[%emt 0:00:18]} 62. Rb4 {[%emt 0:00:59]} Kg6 {[%emt 0:00:31]} 63. Rf4 {[%emt 0:00:13]} Re5 {[%emt 0:00:36]} 64. Rf3 {[%emt 0:01:27]} 1/2-1/2

[Event "EYCC 2017"]
[Site "Mamaia"]
[Date "2017.09.13"]
[Round "8"]
[White "Gasimova, Samra"]
[Black "Sala, Giulia"]
[Result "1-0"]
[ECO "D15"]
[WhiteElo "1578"]
[BlackElo "1532"]
[Annotator "NA RC"]
[PlyCount "97"]
[EventDate "2017.??.??"]
[EventType "swiss"]
[EventCountry "ROU"]
[SourceTitle "playchess.com"]
[Source "ChessBase"]
[SourceQuality "1"]
[TimeControl "40/5400+30:1800+30"]

1. d4 {[%emt 0:00:00]} d5 {[%emt 0:00:13]} 2. Nf3 {[%emt 0:00:00]} Nf6 {[%emt 0:00:36]} 3. c4 {[%emt 0:00:00]} c6 {[%emt 0:00:06]} 4. Nc3 dxc4 {[%emt 0:06:29]} 5. e3 {[%emt 0:00:08]} b5 {[%emt 0:00:13]} 6. a4 {[%emt 0:00:47]} b4 {[%emt 0:00:13]} 7. Na2 {[%emt 0:04:16]} e6 {[%emt 0:00:53]} 8. Bxc4 {[%emt 0:00:34]} Nbd7 {[%emt 0:05:10]} 9. Bd2 {[%emt 0:00:27]} a5 {[%emt 0:00:26]} 10. Nc1 {[%emt 0:02:50]} c5 {[%emt 0:00:57]} 11. Nb3 {[%emt 0:04:00]} cxd4 {[%emt 0:02:10]} 12. Nbxd4 {[%emt 0:01:54]} Bc5 13. O-O {[%emt 0:02:03]} O-O {[%emt 0:05:02]} 14. Rc1 {[%emt 0:02:16]} Bb7 {[%emt 0:06:11]} 15. Qe2 {[%emt 0:07:57]} Nb6 {[%emt 0:02:42]} 16. Bxe6 {[%emt 0:12:06]} Bxd4 {[%emt 0:09:44]} 17. Nxd4 {[%emt 0:00:09]} fxe6 {[%emt 0:00:25]} 18. Nxe6 {[%emt 0:00:07]} Qd5 {[%emt 0:00:20]} 19. Nf4 {[%emt 0:01:23]} Qd7 {[%emt 0:03:08]} 20. Rfd1 {[%emt 0:01:39]} Qxa4 21. Ne6 {[%emt 0:04:58]} Rfc8 {[%emt 0:07:09]} 22. Nc7 {[%emt 0:00:56]} Ra7 {[%emt 0:03:52]} 23. Be1 Bxg2 {[%emt 0:09:07]} 24. Nb5 {[%emt 0:05:00]} Bf3 {[%emt 0:01:23]} 25. Rxc8+ {[%emt 0:00:38]} Nxc8 {[%emt 0:00:54]} 26. Rd8+ {[%emt 0:04:43]} Kf7 {[%emt 0:00:20]} 27. Qc4+ {[%emt 0:00:32]} Bd5 {[%emt 0:05:53]} 28. Rxd5 {[%emt 0:00:12]} Nxd5 {[%emt 0:00:05]} 29. Qxd5+ {[%emt 0:00:15]} Ke8 {[%emt 0:02:23]} 30. Nxa7 {[%emt 0:00:12]} Nxa7 {[%emt 0:01:06]} 31. Qa8+ {[%emt 0:00:11]} Ke7 {[%emt 0:00:24]} 32. Qxa7+ {[%emt 0:00:05]} Kf6 {[%emt 0:00:17]} 33. Qb6+ {[%emt 0:00:29]} Kf7 {[%emt 0:02:24]} 34. Qc7+ {[%emt 0:00:08]} Kf6 {[%emt 0:00:16]} 35. Qd6+ {[%emt 0:00:23]} Kf7 {[%emt 0:00:14]} 36. Qd5+ {[%emt 0:00:19]} Kf6 {[%emt 0:00:45]} 37. f4 {[%emt 0:00:44]} Qa1 {[%emt 0:00:41]} 38. Qd2 {[%emt 0:00:41]} Qb1 {[%emt 0:00:56]} 39. Kf1 {[%emt 0:03:02]} Qe4 {[%emt 0:01:01]} 40. Qd4+ {[%emt 0:00:30]} Kf5 {[%emt 0:31:15]} 41. Qxe4+ {[%emt 0:00:08]} Kxe4 {[%emt 0:00:00]} 42. Ke2 {[%emt 0:00:07]} h5 {[%emt 0:00:00]} 43. b3 {[%emt 0:00:33]} g6 {[%emt 0:00:00]} 44. Bh4 {[%emt 0:00:21]} Kd5 {[%emt 0:00:00]} 45. Kd3 {[%emt 0:00:21]} Kc5 {[%emt 0:00:00]} 46. Bd8 {[%emt 0:00:10]} Kb5 {[%emt 0:00:00]} 47. e4 {[%emt 0:00:14]} a4 {[%emt 0:00:00]} 48. bxa4+ {[%emt 0:00:05]} Kxa4 {[%emt 0:00:00]} 49. Bf6 {[%emt 0:00:05]} 1-0

[Event "EYCC 2017"]
[Site "Mamaia"]
[Date "2017.09.13"]
[Round "8"]
[White "Shvedova, Alexandra"]
[Black "Pawicka, Magdalena"]
[Result "1-0"]
[ECO "C54"]
[WhiteElo "1578"]
[BlackElo "1826"]
[Annotator "NA RC"]
[PlyCount "89"]
[EventDate "2017.??.??"]
[EventType "swiss"]
[EventCountry "ROU"]
[SourceTitle "playchess.com"]
[Source "ChessBase"]
[SourceQuality "1"]
[TimeControl "40/5400+30:1800+30"]

1. e4 {[%emt 0:00:00]} e5 {[%emt 0:00:12]} 2. Nf3 {[%emt 0:00:00]} Nc6 {[%emt 0:00:11]} 3. Bc4 {[%emt 0:00:00]} Bc5 {[%emt 0:00:30]} 4. c3 {[%emt 0:00:00]} Nf6 {[%emt 0:00:29]} 5. d4 {[%emt 0:00:00]} exd4 {[%emt 0:00:58]} 6. e5 {[%emt 0:00:00]} d5 {[%emt 0:00:48]} 7. Bb5 {[%emt 0:00:00]} Ne4 {[%emt 0:01:16]} 8. cxd4 {[%emt 0:00:03]} Bb6 {[%emt 0:00:17]} 9. Nc3 {[%emt 0:00:05]} O-O {[%emt 0:14:04]} 10. Be3 {[%emt 0:00:04]} Bg4 {[%emt 0:03:41]} 11. h3 {[%emt 0:00:04]} Bh5 {[%emt 0:04:31]} 12. Qa4 {[%emt 0:00:21]} Nxc3 {[%emt 0:10:40]} 13. bxc3 {[%emt 0:00:07]} Ne7 {[%emt 0:01:22]} 14. Bd3 {[%emt 0:02:42]} Bg6 {[%emt 0:05:17]} 15. Qc2 {[%emt 0:05:02]} Qd7 {[%emt 0:06:32]} 16. a4 {[%emt 0:06:21]} c6 {[%emt 0:01:49]} 17. O-O {[%emt 0:01:22]} Bxd3 {[%emt 0:04:30]} 18. Qxd3 {[%emt 0:03:21]} Qf5 {[%emt 0:01:03]} 19. Qe2 {[%emt 0:09:50]} Ng6 {[%emt 0:02:23]} 20. Nh2 {[%emt 0:01:47]} Bc7 {[%emt 0:03:28]} 21. g4 {[%emt 0:05:29]} Qd7 {[%emt 0:02:03]} 22. f4 {[%emt 0:00:08]} f5 {[%emt 0:05:37]} 23. Qg2 {[%emt 0:02:11]} Rf7 {[%emt 0:05:48]} 24. Qg3 {[%emt 0:06:14]} Qe7 {[%emt 0:04:42]} 25. Nf3 {[%emt 0:02:11]} Raf8 {[%emt 0:02:03]} 26. Ng5 {[%emt 0:00:31]} fxg4 {[%emt 0:02:19]} 27. Nxf7 {[%emt 0:00:34]} Qxf7 {[%emt 0:03:12]} 28. hxg4 {[%emt 0:00:11]} Ne7 {[%emt 0:02:32]} 29. f5 {[%emt 0:02:07]} Qe8 {[%emt 0:01:46]} 30. Ra2 {[%emt 0:04:05]} Kh8 {[%emt 0:02:29]} 31. Qh4 {[%emt 0:01:13]} Ng8 {[%emt 0:00:55]} 32. Rh2 {[%emt 0:01:31]} h6 {[%emt 0:01:08]} 33. g5 {[%emt 0:01:37]} Bd8 {[%emt 0:02:52]} 34. Qh3 {[%emt 0:00:12]} g6 {[%emt 0:01:24]} 35. f6 {[%emt 0:04:04]} h5 {[%emt 0:00:50]} 36. Rhf2 {[%emt 0:00:07]} Qf7 {[%emt 0:02:23]} 37. e6 {[%emt 0:00:04]} Qc7 {[%emt 0:00:11]} 38. Bf4 {[%emt 0:00:10]} Qh7 {[%emt 0:00:30]} 39. Bd6 {[%emt 0:00:05]} Nxf6 {[%emt 0:02:14]} 40. gxf6 {[%emt 0:00:00]} Rxf6 {[%emt 0:00:50]} 41. Be5 {[%emt 0:00:39]} Qh6 {[%emt 0:00:31]} 42. Bxf6+ {[%emt 0:00:10]} Bxf6 {[%emt 0:00:04]} 43. Rxf6 {[%emt 0:00:11]} Qg5+ {[%emt 0:00:40]} 44. Kh1 {[%emt 0:00:13]} b5 {[%emt 0:01:04]} 45. e7 1-0

[Event "EYCC 2017"]
[Site "Mamaia"]
[Date "2017.09.13"]
[Round "8"]
[White "Chicarosie, Ioana-Bianca"]
[Black "Tokarz, Izabela"]
[Result "1/2-1/2"]
[ECO "D02"]
[WhiteElo "1565"]
[BlackElo "1324"]
[Annotator "NA RC"]
[PlyCount "153"]
[EventDate "2017.??.??"]
[EventType "swiss"]
[EventCountry "ROU"]
[SourceTitle "playchess.com"]
[Source "ChessBase"]
[SourceQuality "1"]
[TimeControl "40/5400+30:1800+30"]

1. d4 d5 2. Nf3 e6 3. Bf4 f5 4. e3 c6 5. c4 Nf6 6. Nc3 Bd6 7. c5 Bc7 8. Bxc7 Qxc7 9. Ne5 O-O 10. Be2 Nbd7 11. f4 Ne4 12. Nxe4 fxe4 13. O-O Qd8 14. Bg4 Nf6 15. Bh3 Qe7 16. b4 Bd7 17. Qe2 Be8 18. g4 Nd7 19. Bg2 Nxe5 20. fxe5 Bg6 21. Rxf8+ Rxf8 22. a4 Qh4 23. b5 h5 24. h3 Be8 25. Rf1 Rxf1+ 26. Kxf1 hxg4 27. hxg4 Qd8 28. Qb2 cxb5 29. axb5 Qd7 30. b6 a5 31. Ke2 a4 32. Kd2 Qe7 33. Kc3 Qh4 34. Qe2 Kh7 35. Kb4 Kg6 36. Bf1 Qg3 37. Bg2 Bc6 38. Bf1 Kg5 39. Ka3 Qxg4 40. Qxg4+ Kxg4 41. Be2+ Kg3 42. Bd1 Bd7 43. Bxa4 Bc8 44. c6 bxc6 45. Bxc6 Kf2 46. Bd7 Bb7 47. Kb4 Kxe3 48. Kc5 Kd2 49. Kd6 e3 50. Bb5 g5 51. Kc7 Ba8 52. Kb8 Bc6 53. Ba6 e2 54. Bxe2 Kxe2 55. Kc7 Ba8 56. Kb8 g4 57. Kxa8 g3 58. b7 g2 59. b8=Q g1=Q 60. Qb6 Qg8+ 61. Kb7 Ke3 62. Kc7 Qe8 63. Kd6 Ke4 64. Qa7 Ke3 65. Qe7 Qxe7+ 66. Kxe7 Kxd4 67. Kxe6 Kc4 68. Kf6 d4 69. e6 d3 70. e7 d2 71. e8=Q d1=Q 72. Qc8+ Kd3 73. Qd8+ Ke2 74. Qxd1+ Kxd1 75. Kf7 Kd2 76. Kg7 Ke3 {[%emt 2:08:24]} 77. Kh7 {[%emt 2:38:30]} 1/2-1/2